[Event "Late-Titled-Tuesday-Blitz-January-23-2024"]
[Site "Chess.com"]
[Date "2024.01.23"]
[Round "1"]
[White "Alexei_Gubajdullin"]
[Black "hsd2016"]
[Result "1-0"]
[WhiteElo "2601"]
[BlackElo "2280"]
[TimeControl "180+1"]
[EndTime "14:07:22 PST"]
[Termination "Alexei_Gubajdullin won by resignation"]

1. Nf3 {[%clk 0:02:55.2]} 1... Nf6 {[%clk 0:02:59.9]} 2. g3 {[%clk 0:02:55.3]}
2... g6 {[%clk 0:03:00.6]} 3. Bg2 {[%clk 0:02:55.6]} 3... Bg7 {[%clk 0:03:01.5]}
4. O-O {[%clk 0:02:55.8]} 4... O-O {[%clk 0:03:02.4]} 5. d3 {[%clk 0:02:54.9]}
5... c5 {[%clk 0:03:02.4]} 6. e4 {[%clk 0:02:54.9]} 6... b6 {[%clk 0:03:01]} 7.
Qe2 {[%clk 0:02:54.8]} 7... Bb7 {[%clk 0:03:01.3]} 8. Re1 {[%clk 0:02:54.2]}
8... d6 {[%clk 0:03:01.6]} 9. Nbd2 {[%clk 0:02:54.2]} 9... e5 {[%clk 0:03:01.2]}
10. Nf1 {[%clk 0:02:53.9]} 10... Nc6 {[%clk 0:03:00.4]} 11. c3 {[%clk
0:02:53.5]} 11... Re8 {[%clk 0:03:00.9]} 12. Bg5 {[%clk 0:02:53]} 12... h6
{[%clk 0:03:00.5]} 13. Bxf6 {[%clk 0:02:53]} 13... Qxf6 {[%clk 0:03:00.4]} 14.
Ne3 {[%clk 0:02:53.2]} 14... Nd8 {[%clk 0:02:58.4]} 15. Nd2 {[%clk 0:02:52.5]}
15... Ne6 {[%clk 0:02:58.2]} 16. Nd5 {[%clk 0:02:51.5]} 16... Bxd5 {[%clk
0:02:57.7]} 17. exd5 {[%clk 0:02:51.6]} 17... Nc7 {[%clk 0:02:53.9]} 18. h4
{[%clk 0:02:49.8]} 18... h5 {[%clk 0:02:49.1]} 19. Ne4 {[%clk 0:02:49.4]} 19...
Qd8 {[%clk 0:02:49.2]} 20. c4 {[%clk 0:02:46.1]} 20... f5 {[%clk 0:02:42.1]} 21.
Ng5 {[%clk 0:02:44.7]} 21... Bf6 {[%clk 0:02:42]} 22. Ne6 {[%clk 0:02:44.3]}
22... Nxe6 {[%clk 0:02:39.9]} 23. dxe6 {[%clk 0:02:44.3]} 23... Rb8 {[%clk
0:02:37]} 24. Bd5 {[%clk 0:02:43.8]} 24... Qe7 {[%clk 0:02:34.7]} 25. Kg2 {[%clk
0:02:40.2]} 25... Kg7 {[%clk 0:02:34.4]} 26. Rad1 {[%clk 0:02:38.9]} 26... Rh8
{[%clk 0:02:30.3]} 27. b3 {[%clk 0:02:38.5]} 27... Rbg8 {[%clk 0:02:19.2]} 28.
Rh1 {[%clk 0:02:35.8]} 28... Rf8 {[%clk 0:01:51.9]} 29. Rb1 {[%clk 0:02:35.1]}
29... f4 {[%clk 0:01:48.4]} 30. b4 {[%clk 0:02:31.3]} 30... f3+ {[%clk
0:01:32.1]} 31. Bxf3 {[%clk 0:02:25.1]} 31... Qxe6 {[%clk 0:01:31.5]} 32. bxc5
{[%clk 0:02:24.6]} 32... dxc5 {[%clk 0:01:30.4]} 33. a4 {[%clk 0:02:24.5]} 33...
e4 {[%clk 0:01:26.1]} 34. Bxe4 {[%clk 0:02:24.4]} 34... Bd4 {[%clk 0:01:25.4]}
35. f4 {[%clk 0:02:24.6]} 35... Rb8 {[%clk 0:01:03.2]} 36. Qd2 {[%clk
0:02:11.6]} 36... Rhf8 {[%clk 0:00:58.2]} 37. a5 {[%clk 0:02:10.5]} 37... Rf6
{[%clk 0:00:48.4]} 38. Qa2 {[%clk 0:02:09.8]} 38... Rbf8 {[%clk 0:00:13.4]} 39.
axb6 {[%clk 0:02:05.9]} 39... axb6 {[%clk 0:00:14.3]} 40. Rhe1 {[%clk
0:02:02.9]} 40... Rxf4 {[%clk 0:00:10]} 41. gxf4 {[%clk 0:01:57.4]} 41... Qg4+
{[%clk 0:00:10]} 42. Kh1 {[%clk 0:01:57.4]} 42... Rxf4 {[%clk 0:00:08.8]} 43.
Rg1 {[%clk 0:01:37.8]} 43... Qxh4+ {[%clk 0:00:03.7]} 44. Qh2 {[%clk 0:01:36.9]}
44... Qxh2+ {[%clk 0:00:03.4]} 45. Kxh2 {[%clk 0:01:36.9]} 45... Rh4+ {[%clk
0:00:03.2]} 46. Kg2 {[%clk 0:01:35.4]} 46... Rg4+ {[%clk 0:00:03.3]} 47. Kh1
{[%clk 0:01:33.4]} 47... Rh4+ {[%clk 0:00:02.8]} 48. Kg2 {[%clk 0:01:33.4]}
48... Rg4+ {[%clk 0:00:03.5]} 49. Kh2 {[%clk 0:01:20.3]} 49... Rh4+ {[%clk
0:00:02.4]} 50. Kg3 {[%clk 0:01:19]} 50... Rg4+ {[%clk 0:00:03]} 51. Kh3 {[%clk
0:01:19]} 51... Rxg1 {[%clk 0:00:02.8]} 52. Rxb6 {[%clk 0:01:19.1]} 52... Rh1+
{[%clk 0:00:01.5]} 53. Kg2 {[%clk 0:01:18.5]} 53... Rg1+ {[%clk 0:00:01.6]} 54.
Kh2 {[%clk 0:01:19.4]} 54... Kf7 {[%clk 0:00:01.9]} 55. Rd6 {[%clk 0:01:18.9]}
55... Ke7 {[%clk 0:00:02.3]} 56. Rxd4 {[%clk 0:01:18.5]} 56... cxd4 {[%clk
0:00:02.5]} 57. Kxg1 {[%clk 0:01:18.5]} 57... g5 {[%clk 0:00:03.2]} 58. Kg2
{[%clk 0:01:18.6]} 58... Kf6 {[%clk 0:00:03.9]} 59. Kg3 {[%clk 0:01:18.2]} 59...
Ke5 {[%clk 0:00:04.6]} 60. Bg6 {[%clk 0:01:17.3]} 60... h4+ {[%clk 0:00:03.9]}
61. Kg4 {[%clk 0:01:17.5]} 61... Kf6 {[%clk 0:00:04.6]} 62. Be4 {[%clk
0:01:16.7]} 62... Ke5 {[%clk 0:00:05.1]} 63. Kxg5 {[%clk 0:01:16.4]} 63... h3
{[%clk 0:00:05.7]} 64. Kg4 {[%clk 0:01:16.6]} 64... h2 {[%clk 0:00:06.1]} 65.
Kg3 {[%clk 0:01:16.8]} 1-0

[Event "Late-Titled-Tuesday-Blitz-January-23-2024"]
[Site "Chess.com"]
[Date "2024.01.23"]
[Round "1"]
[White "Grischuk"]
[Black "Slovak_fighter2000"]
[Result "1-0"]
[WhiteElo "3076"]
[BlackElo "2533"]
[TimeControl "180+1"]
[EndTime "14:07:23 PST"]
[Termination "Grischuk won by checkmate"]

1. d4 {[%clk 0:03:00.9]} 1... Nf6 {[%clk 0:02:59.5]} 2. c4 {[%clk 0:03:00.6]}
2... e6 {[%clk 0:02:59.4]} 3. Bg5 {[%clk 0:03:00.2]} 3... d5 {[%clk 0:02:55.7]}
4. e3 {[%clk 0:03:00.2]} 4... Be7 {[%clk 0:02:53.6]} 5. Nc3 {[%clk 0:03:00.1]}
5... O-O {[%clk 0:02:53.4]} 6. Qc2 {[%clk 0:02:59.8]} 6... b6 {[%clk 0:02:46.3]}
7. Nf3 {[%clk 0:02:51.8]} 7... Bb7 {[%clk 0:02:37.7]} 8. Bxf6 {[%clk 0:02:51.8]}
8... Bxf6 {[%clk 0:02:37.4]} 9. cxd5 {[%clk 0:02:52.3]} 9... exd5 {[%clk
0:02:35.3]} 10. Rd1 {[%clk 0:02:51.5]} 10... Nd7 {[%clk 0:02:28.1]} 11. g3
{[%clk 0:02:40.9]} 11... Rc8 {[%clk 0:02:23.3]} 12. Bg2 {[%clk 0:02:32.5]} 12...
c5 {[%clk 0:02:21.2]} 13. O-O {[%clk 0:02:31.3]} 13... Qc7 {[%clk 0:01:59.5]}
14. Rfe1 {[%clk 0:02:03.9]} 14... Rfe8 {[%clk 0:01:54.5]} 15. h4 {[%clk
0:01:59]} 15... g6 {[%clk 0:01:53]} 16. Bh3 {[%clk 0:01:34.5]} 16... Rcd8 {[%clk
0:01:46.4]} 17. Qa4 {[%clk 0:01:33.1]} 17... a6 {[%clk 0:01:42.3]} 18. Qb3
{[%clk 0:01:18.9]} 18... c4 {[%clk 0:01:39.5]} 19. Qc2 {[%clk 0:01:19.5]} 19...
b5 {[%clk 0:01:36.1]} 20. a3 {[%clk 0:01:20.1]} 20... Bc6 {[%clk 0:01:29.6]} 21.
Nh2 {[%clk 0:01:13.8]} 21... Bg7 {[%clk 0:01:28.4]} 22. Bg2 {[%clk 0:00:58]}
22... Nb6 {[%clk 0:01:23.8]} 23. Ne2 {[%clk 0:00:36.8]} 23... b4 {[%clk
0:01:14]} 24. axb4 {[%clk 0:00:33.9]} 24... Ba4 {[%clk 0:01:13.8]} 25. Qd2
{[%clk 0:00:33.4]} 25... Bxd1 {[%clk 0:01:13.7]} 26. Rxd1 {[%clk 0:00:34.3]}
26... h5 {[%clk 0:00:58.4]} 27. Ra1 {[%clk 0:00:33.9]} 27... Qc8 {[%clk
0:00:51.1]} 28. Nf3 {[%clk 0:00:29.7]} 28... Re7 {[%clk 0:00:42.9]} 29. Nf4
{[%clk 0:00:20.2]} 29... Rc7 {[%clk 0:00:38.5]} 30. Bh3 {[%clk 0:00:18.9]} 30...
Qb7 {[%clk 0:00:35.6]} 31. Qc2 {[%clk 0:00:16.6]} 31... Nd7 {[%clk 0:00:27.6]}
32. Nxg6 {[%clk 0:00:07.9]} 32... fxg6 {[%clk 0:00:26.2]} 33. Be6+ {[%clk
0:00:08]} 33... Kf8 {[%clk 0:00:11.3]} 34. Qxg6 {[%clk 0:00:08.5]} 34... Nf6
{[%clk 0:00:09.5]} 35. Ne5 {[%clk 0:00:04.3]} 35... Qb6 {[%clk 0:00:08.3]} 36.
Qf5 {[%clk 0:00:03.6]} 36... Re8 {[%clk 0:00:07.2]} 37. Ng6# {[%clk 0:00:03.3]}
1-0

[Event "Late-Titled-Tuesday-Blitz-January-23-2024"]
[Site "Chess.com"]
[Date "2024.01.23"]
[Round "1"]
[White "mjelcic"]
[Black "Nf3c5"]
[Result "1-0"]
[WhiteElo "2214"]
[BlackElo "2560"]
[TimeControl "180+1"]
[EndTime "14:07:24 PST"]
[Termination "mjelcic won on time"]

1. e4 {[%clk 0:03:00.9]} 1... d6 {[%clk 0:02:57.9]} 2. d4 {[%clk 0:03:00.7]}
2... Nf6 {[%clk 0:02:58.5]} 3. Nc3 {[%clk 0:03:00.8]} 3... e5 {[%clk 0:02:59.1]}
4. Nf3 {[%clk 0:02:59.7]} 4... exd4 {[%clk 0:02:58]} 5. Nxd4 {[%clk 0:02:59.4]}
5... Be7 {[%clk 0:02:58.9]} 6. Bc4 {[%clk 0:02:56.2]} 6... O-O {[%clk
0:02:59.8]} 7. O-O {[%clk 0:02:56.1]} 7... Nxe4 {[%clk 0:02:55.6]} 8. Nxe4
{[%clk 0:02:55.5]} 8... d5 {[%clk 0:02:56]} 9. Bd3 {[%clk 0:02:55.9]} 9... dxe4
{[%clk 0:02:52.9]} 10. Bxe4 {[%clk 0:02:56.8]} 10... Bf6 {[%clk 0:02:35]} 11.
Be3 {[%clk 0:02:54.6]} 11... Nd7 {[%clk 0:02:32.6]} 12. c3 {[%clk 0:02:45.5]}
12... Re8 {[%clk 0:02:25.1]} 13. Bc2 {[%clk 0:02:43.9]} 13... Ne5 {[%clk
0:02:22]} 14. h3 {[%clk 0:02:11.7]} 14... g6 {[%clk 0:02:07.1]} 15. Qe2 {[%clk
0:01:59.9]} 15... Bd7 {[%clk 0:01:48.7]} 16. Rad1 {[%clk 0:01:56.8]} 16... Qc8
{[%clk 0:01:48.8]} 17. Nf3 {[%clk 0:01:52.6]} 17... Bc6 {[%clk 0:01:24.8]} 18.
Nxe5 {[%clk 0:01:50.4]} 18... Bxe5 {[%clk 0:01:25.4]} 19. Qg4 {[%clk 0:01:48.4]}
19... Qxg4 {[%clk 0:01:12.2]} 20. hxg4 {[%clk 0:01:49.3]} 20... b6 {[%clk
0:01:09.3]} 21. Rd2 {[%clk 0:01:39]} 21... Rad8 {[%clk 0:01:08.9]} 22. Rfd1
{[%clk 0:01:39]} 22... Rxd2 {[%clk 0:01:09.5]} 23. Rxd2 {[%clk 0:01:39.9]} 23...
a5 {[%clk 0:01:09.7]} 24. Bb3 {[%clk 0:01:32.8]} 24... Kf8 {[%clk 0:01:03.1]}
25. Bd5 {[%clk 0:01:30.9]} 25... Bxd5 {[%clk 0:00:23.8]} 26. Rxd5 {[%clk
0:01:31.8]} 26... Bd6 {[%clk 0:00:23.1]} 27. Bh6+ {[%clk 0:01:22.4]} 27... Ke7
{[%clk 0:00:23.2]} 28. Kf1 {[%clk 0:01:17.2]} 28... Ke6 {[%clk 0:00:20.3]} 29.
Rd3 {[%clk 0:01:13.7]} 29... f5 {[%clk 0:00:13.8]} 30. Re3+ {[%clk 0:01:08.5]}
30... Kd7 {[%clk 0:00:13.9]} 31. Rxe8 {[%clk 0:01:09.1]} 31... Kxe8 {[%clk
0:00:14.8]} 32. gxf5 {[%clk 0:01:09.5]} 32... gxf5 {[%clk 0:00:14.8]} 33. Ke2
{[%clk 0:01:09.4]} 33... Kd7 {[%clk 0:00:14.9]} 34. c4 {[%clk 0:01:07.5]} 34...
c6 {[%clk 0:00:14.3]} 35. b3 {[%clk 0:01:07.4]} 35... b5 {[%clk 0:00:14.8]} 36.
Kd3 {[%clk 0:01:03.3]} 36... a4 {[%clk 0:00:13.4]} 37. cxb5 {[%clk 0:00:59.1]}
37... cxb5 {[%clk 0:00:13.7]} 38. bxa4 {[%clk 0:00:59.3]} 38... bxa4 {[%clk
0:00:14.6]} 39. Kc4 {[%clk 0:00:59.7]} 39... Kc6 {[%clk 0:00:14.7]} 40. Be3
{[%clk 0:00:56.7]} 40... Be7 {[%clk 0:00:14.9]} 41. Bd4 {[%clk 0:00:56.8]} 41...
Bd6 {[%clk 0:00:15.1]} 42. f3 {[%clk 0:00:57.1]} 42... Be7 {[%clk 0:00:14.8]}
43. Be3 {[%clk 0:00:56.3]} 43... Bd6 {[%clk 0:00:12.9]} 44. Bd2 {[%clk
0:00:56.5]} 44... Be7 {[%clk 0:00:12.1]} 45. Bb4 {[%clk 0:00:56.8]} 45... Bf6
{[%clk 0:00:12.5]} 46. Bf8 {[%clk 0:00:56.1]} 46... Be5 {[%clk 0:00:08]} 47. Kb4
{[%clk 0:00:56.2]} 47... Kd5 {[%clk 0:00:05.5]} 48. Kxa4 {[%clk 0:00:56.4]}
48... Kd4 {[%clk 0:00:06.2]} 49. Kb5 {[%clk 0:00:48.4]} 49... Ke3 {[%clk
0:00:06.2]} 50. a4 {[%clk 0:00:41.8]} 50... Kf2 {[%clk 0:00:01.4]} 51. g4 {[%clk
0:00:41]} 1-0

[Event "Late-Titled-Tuesday-Blitz-January-23-2024"]
[Site "Chess.com"]
[Date "2024.01.23"]
[Round "1"]
[White "greekplayer1"]
[Black "falzehope0"]
[Result "1-0"]
[WhiteElo "2705"]
[BlackElo "2394"]
[TimeControl "180+1"]
[EndTime "14:07:32 PST"]
[Termination "greekplayer1 won by checkmate"]

1. e4 {[%clk 0:02:54.7]} 1... d5 {[%clk 0:02:59.8]} 2. exd5 {[%clk 0:02:55.6]}
2... Nf6 {[%clk 0:03:00.1]} 3. Nc3 {[%clk 0:02:55.6]} 3... g6 {[%clk 0:02:58.6]}
4. d4 {[%clk 0:02:55.9]} 4... Bg7 {[%clk 0:02:57.9]} 5. Nf3 {[%clk 0:02:53]}
5... O-O {[%clk 0:02:57.2]} 6. Bc4 {[%clk 0:02:38.4]} 6... Nbd7 {[%clk
0:02:55.7]} 7. O-O {[%clk 0:02:33.1]} 7... Nb6 {[%clk 0:02:55.6]} 8. Bb3 {[%clk
0:02:33.4]} 8... Nbxd5 {[%clk 0:02:50.9]} 9. Nxd5 {[%clk 0:02:30.8]} 9... Nxd5
{[%clk 0:02:51.8]} 10. c4 {[%clk 0:02:28.1]} 10... Nb4 {[%clk 0:02:48.1]} 11. a3
{[%clk 0:02:22.2]} 11... Na6 {[%clk 0:02:45]} 12. h3 {[%clk 0:01:42.6]} 12... c6
{[%clk 0:02:39.8]} 13. Re1 {[%clk 0:01:40.1]} 13... Qc7 {[%clk 0:02:38]} 14. Qe2
{[%clk 0:01:27.6]} 14... e6 {[%clk 0:02:36.8]} 15. Bd2 {[%clk 0:01:03.2]} 15...
Qb6 {[%clk 0:02:34.3]} 16. Bc2 {[%clk 0:00:58.9]} 16... Qxb2 {[%clk 0:02:30.6]}
17. Bd3 {[%clk 0:00:43.9]} 17... Qb6 {[%clk 0:02:29.1]} 18. c5 {[%clk
0:00:42.6]} 18... Qc7 {[%clk 0:02:27.9]} 19. Qe4 {[%clk 0:00:43.5]} 19... Qd7
{[%clk 0:02:25.2]} 20. Qh4 {[%clk 0:00:43.6]} 20... Re8 {[%clk 0:02:21.3]} 21.
Bh6 {[%clk 0:00:44]} 21... Bh8 {[%clk 0:02:20.8]} 22. Rad1 {[%clk 0:00:41.8]}
22... Nc7 {[%clk 0:02:20.4]} 23. Be4 {[%clk 0:00:25.1]} 23... Nd5 {[%clk
0:02:19]} 24. Ng5 {[%clk 0:00:25.3]} 24... Nf6 {[%clk 0:02:17]} 25. Nf3 {[%clk
0:00:22.8]} 25... Nxe4 {[%clk 0:02:15.3]} 26. Rxe4 {[%clk 0:00:23.7]} 26... f6
{[%clk 0:02:10.2]} 27. Rde1 {[%clk 0:00:24]} 27... Qf7 {[%clk 0:02:10.2]} 28.
Bd2 {[%clk 0:00:22.8]} 28... Bg7 {[%clk 0:02:09.6]} 29. a4 {[%clk 0:00:21.2]}
29... b6 {[%clk 0:02:05]} 30. a5 {[%clk 0:00:20.9]} 30... b5 {[%clk 0:02:02.5]}
31. Bb4 {[%clk 0:00:21]} 31... a6 {[%clk 0:02:01.6]} 32. Rf4 {[%clk 0:00:21.5]}
32... g5 {[%clk 0:01:56.6]} 33. Nxg5 {[%clk 0:00:21.3]} 33... fxg5 {[%clk
0:01:56.2]} 34. Qxg5 {[%clk 0:00:22.2]} 34... Qg6 {[%clk 0:01:55.3]} 35. Qh4
{[%clk 0:00:22.8]} 35... Kh8 {[%clk 0:01:46.2]} 36. Rg4 {[%clk 0:00:23.1]} 36...
Qf6 {[%clk 0:01:41.3]} 37. Qg3 {[%clk 0:00:22.5]} 37... Rg8 {[%clk 0:01:38.8]}
38. d5 {[%clk 0:00:22.4]} 38... e5 {[%clk 0:01:32.7]} 39. Rg5 {[%clk 0:00:15.1]}
39... cxd5 {[%clk 0:01:27]} 40. Rexe5 {[%clk 0:00:15.7]} 40... d4 {[%clk
0:01:21.6]} 41. c6 {[%clk 0:00:15]} 41... Be6 {[%clk 0:01:19.7]} 42. Bc5 {[%clk
0:00:12.6]} 42... Rad8 {[%clk 0:01:17.7]} 43. c7 {[%clk 0:00:11.6]} 43... Rd7
{[%clk 0:01:18.1]} 44. Qd3 {[%clk 0:00:08.4]} 44... Bc4 {[%clk 0:01:17.3]} 45.
Qd2 {[%clk 0:00:08.2]} 45... Qxe5 {[%clk 0:01:09.9]} 46. Rxe5 {[%clk 0:00:07.7]}
46... Bxe5 {[%clk 0:01:10.8]} 47. Qh6 {[%clk 0:00:07.2]} 47... Rxc7 {[%clk
0:01:01.3]} 48. Bb4 {[%clk 0:00:06.9]} 48... Rcg7 {[%clk 0:00:59.4]} 49. g3
{[%clk 0:00:06.7]} 49... d3 {[%clk 0:00:52.7]} 50. Bd2 {[%clk 0:00:05.5]} 50...
Rg6 {[%clk 0:00:47.8]} 51. Qe3 {[%clk 0:00:05.3]} 51... Bg7 {[%clk 0:00:45.9]}
52. h4 {[%clk 0:00:03.3]} 52... Rf6 {[%clk 0:00:39.8]} 53. h5 {[%clk 0:00:03.2]}
53... h6 {[%clk 0:00:39.1]} 54. Bc3 {[%clk 0:00:03.1]} 54... Rf7 {[%clk
0:00:37.8]} 55. Qxh6# {[%clk 0:00:02.9]} 1-0

[Event "Late-Titled-Tuesday-Blitz-January-23-2024"]
[Site "Chess.com"]
[Date "2024.01.23"]
[Round "1"]
[White "rionelG"]
[Black "ArmanGhevondyanchess"]
[Result "1/2-1/2"]
[WhiteElo "2272"]
[BlackElo "2588"]
[TimeControl "180+1"]
[EndTime "14:07:40 PST"]
[Termination "Game drawn by repetition"]

1. e4 {[%clk 0:03:00.9]} 1... c5 {[%clk 0:03:00]} 2. Nf3 {[%clk 0:03:00.1]} 2...
Nc6 {[%clk 0:02:59.2]} 3. d4 {[%clk 0:02:58.6]} 3... cxd4 {[%clk 0:02:58.3]} 4.
Nxd4 {[%clk 0:02:57.6]} 4... g6 {[%clk 0:02:58.2]} 5. Nc3 {[%clk 0:02:53.1]}
5... Bg7 {[%clk 0:02:58.3]} 6. Be3 {[%clk 0:02:49.7]} 6... Nf6 {[%clk 0:02:58]}
7. Be2 {[%clk 0:02:49.2]} 7... O-O {[%clk 0:02:56.2]} 8. f4 {[%clk 0:02:41.4]}
8... d5 {[%clk 0:02:49.3]} 9. e5 {[%clk 0:02:23.5]} 9... Ne4 {[%clk 0:02:45.8]}
10. Nxc6 {[%clk 0:02:22.2]} 10... bxc6 {[%clk 0:02:44.9]} 11. Nxe4 {[%clk
0:02:22.3]} 11... dxe4 {[%clk 0:02:45.6]} 12. Qxd8 {[%clk 0:02:22.5]} 12... Rxd8
{[%clk 0:02:45.7]} 13. O-O {[%clk 0:02:23]} 13... f6 {[%clk 0:02:37.2]} 14. Bc4+
{[%clk 0:02:22.1]} 14... Kf8 {[%clk 0:02:35]} 15. exf6 {[%clk 0:02:11.6]} 15...
Bxf6 {[%clk 0:02:35.2]} 16. c3 {[%clk 0:02:12]} 16... Rb8 {[%clk 0:02:31]} 17.
Bb3 {[%clk 0:02:11.6]} 17... a5 {[%clk 0:02:30.9]} 18. Rad1 {[%clk 0:02:08.4]}
18... Ba6 {[%clk 0:02:28.4]} 19. Rxd8+ {[%clk 0:02:06.8]} 19... Rxd8 {[%clk
0:02:29.3]} 20. Rd1 {[%clk 0:02:07.1]} 20... Rb8 {[%clk 0:02:17.3]} 21. Ba7
{[%clk 0:02:00.5]} 21... Ra8 {[%clk 0:02:10.5]} 22. Bc5 {[%clk 0:01:54.7]} 22...
Bd3 {[%clk 0:02:09]} 23. Rd2 {[%clk 0:01:36.5]} 23... a4 {[%clk 0:02:03.5]} 24.
Bc2 {[%clk 0:01:36.5]} 24... Bxc2 {[%clk 0:01:55.1]} 25. Rxc2 {[%clk 0:01:37.4]}
25... Ra5 {[%clk 0:01:50.7]} 26. Be3 {[%clk 0:01:33.6]} 26... Kf7 {[%clk
0:01:46.9]} 27. Kf2 {[%clk 0:01:33.1]} 27... e5 {[%clk 0:01:44]} 28. fxe5 {[%clk
0:01:29.1]} 28... Bxe5 {[%clk 0:01:44.9]} 29. Re2 {[%clk 0:01:14.1]} 29... Ke6
{[%clk 0:01:41]} 30. Rd2 {[%clk 0:00:59.4]} 30... Rb5 {[%clk 0:01:33.7]} 31. Rc2
{[%clk 0:00:55.7]} 31... c5 {[%clk 0:01:30.4]} 32. c4 {[%clk 0:00:52.3]} 32...
Rxb2 {[%clk 0:01:19.8]} 33. Rxb2 {[%clk 0:00:52.3]} 33... Bxb2 {[%clk
0:01:20.6]} 34. Bxc5 {[%clk 0:00:52.9]} 34... Ke5 {[%clk 0:01:21.3]} 35. Be3
{[%clk 0:00:41.7]} 35... h5 {[%clk 0:01:12.4]} 36. Ke2 {[%clk 0:00:40.5]} 36...
Bc3 {[%clk 0:01:10.1]} 37. h3 {[%clk 0:00:28.6]} 37... Bd4 {[%clk 0:01:07.7]}
38. g4 {[%clk 0:00:22.6]} 38... hxg4 {[%clk 0:01:06.4]} 39. hxg4 {[%clk
0:00:21.9]} 39... Bc3 {[%clk 0:01:05.7]} 40. Kf2 {[%clk 0:00:19.4]} 40... Kd6
{[%clk 0:01:01.6]} 41. Kg3 {[%clk 0:00:19.4]} 41... Be5+ {[%clk 0:00:27.8]} 42.
Kf2 {[%clk 0:00:19]} 42... Kc6 {[%clk 0:00:24.1]} 43. Ke2 {[%clk 0:00:17.1]}
43... Bd6 {[%clk 0:00:22.6]} 44. Bd4 {[%clk 0:00:12.4]} 44... Bf4 {[%clk
0:00:22.4]} 45. Bg1 {[%clk 0:00:07.1]} 45... Kd6 {[%clk 0:00:20.7]} 46. Bd4
{[%clk 0:00:05.4]} 46... Kc6 {[%clk 0:00:20.9]} 47. Bg1 {[%clk 0:00:05.3]} 47...
Kd6 {[%clk 0:00:19.3]} 48. Bd4 {[%clk 0:00:05.7]} 48... Kc6 {[%clk 0:00:19]}
1/2-1/2

[Event "Late-Titled-Tuesday-Blitz-January-23-2024"]
[Site "Chess.com"]
[Date "2024.01.23"]
[Round "1"]
[White "miraitrunks"]
[Black "HajiyevKanan"]
[Result "0-1"]
[WhiteElo "2075"]
[BlackElo "2552"]
[TimeControl "180+1"]
[EndTime "14:07:40 PST"]
[Termination "HajiyevKanan won by resignation"]

1. e4 {[%clk 0:02:58.2]} 1... c6 {[%clk 0:02:57.1]} 2. d4 {[%clk 0:02:57.7]}
2... d5 {[%clk 0:02:58]} 3. exd5 {[%clk 0:02:56.7]} 3... cxd5 {[%clk 0:02:55.3]}
4. Bd3 {[%clk 0:02:57.3]} 4... Nc6 {[%clk 0:02:55]} 5. c3 {[%clk 0:02:57.7]}
5... Qc7 {[%clk 0:02:55.6]} 6. Ne2 {[%clk 0:02:56.6]} 6... Nf6 {[%clk
0:02:53.8]} 7. Bf4 {[%clk 0:02:56.1]} 7... Qb6 {[%clk 0:02:54.3]} 8. Qc2 {[%clk
0:02:51.9]} 8... Bg4 {[%clk 0:02:49.5]} 9. O-O {[%clk 0:02:48]} 9... e6 {[%clk
0:02:49.1]} 10. h3 {[%clk 0:02:45]} 10... Bh5 {[%clk 0:02:45.8]} 11. Ng3 {[%clk
0:02:42.9]} 11... Bg6 {[%clk 0:02:44.6]} 12. Bxg6 {[%clk 0:02:42.7]} 12... hxg6
{[%clk 0:02:45.5]} 13. Re1 {[%clk 0:02:40.2]} 13... Be7 {[%clk 0:02:45.8]} 14.
Nd2 {[%clk 0:02:36.3]} 14... Rc8 {[%clk 0:02:44.5]} 15. Qb3 {[%clk 0:02:35.4]}
15... Qxb3 {[%clk 0:02:38.3]} 16. Nxb3 {[%clk 0:02:36.3]} 16... Kd7 {[%clk
0:02:36.2]} 17. Re2 {[%clk 0:02:28.2]} 17... b6 {[%clk 0:02:32.9]} 18. Rae1
{[%clk 0:02:27.7]} 18... a5 {[%clk 0:02:29.7]} 19. Be5 {[%clk 0:02:21.3]} 19...
a4 {[%clk 0:02:26.5]} 20. Nc1 {[%clk 0:02:19.1]} 20... a3 {[%clk 0:02:26.9]} 21.
b3 {[%clk 0:02:02.4]} 21... Nxe5 {[%clk 0:02:16.5]} 22. dxe5 {[%clk 0:01:56.9]}
22... Nh5 {[%clk 0:02:16.6]} 23. Re3 {[%clk 0:01:49.1]} 23... Bg5 {[%clk
0:01:59.5]} 24. Rd3 {[%clk 0:01:43.5]} 24... Ke7 {[%clk 0:01:50.9]} 25. Nxh5
{[%clk 0:01:36.2]} 25... Rxh5 {[%clk 0:01:45.8]} 26. Ne2 {[%clk 0:01:35.9]}
26... Rhh8 {[%clk 0:01:38]} 27. Red1 {[%clk 0:01:15.3]} 27... Rc5 {[%clk
0:01:25.2]} 28. f4 {[%clk 0:01:10.8]} 28... Bh6 {[%clk 0:01:24.9]} 29. c4 {[%clk
0:01:10]} 29... Rd8 {[%clk 0:01:08.4]} 30. Nc3 {[%clk 0:01:06.2]} 30... Bxf4
{[%clk 0:01:04.7]} 31. cxd5 {[%clk 0:01:02.5]} 31... Bxe5 {[%clk 0:01:03.5]} 32.
Na4 {[%clk 0:00:46]} 32... Rc2 {[%clk 0:00:53.9]} 33. Nxb6 {[%clk 0:00:33.9]}
33... Rxa2 {[%clk 0:00:47]} 34. d6+ {[%clk 0:00:34.3]} 34... Ke8 {[%clk
0:00:33.4]} 35. Nc8 {[%clk 0:00:21.8]} 35... Rb2 {[%clk 0:00:28.4]} 36. Ne7
{[%clk 0:00:08.6]} 36... Bxd6 {[%clk 0:00:21.9]} 37. Nc6 {[%clk 0:00:08.2]}
37... Bc5+ {[%clk 0:00:21.2]} 38. Kh1 {[%clk 0:00:07.7]} 38... Rxd3 {[%clk
0:00:21.5]} 39. Rxd3 {[%clk 0:00:08.5]} 39... f6 {[%clk 0:00:14.9]} 40. Rd8+
{[%clk 0:00:05.4]} 40... Kf7 {[%clk 0:00:14.9]} 41. Rd7+ {[%clk 0:00:05.5]}
41... Kg8 {[%clk 0:00:15.2]} 42. Rd8+ {[%clk 0:00:04.2]} 42... Kh7 {[%clk
0:00:15.1]} 43. Rc8 {[%clk 0:00:03.5]} 43... Bd6 {[%clk 0:00:12.9]} 44. Kg1
{[%clk 0:00:03.4]} 44... a2 {[%clk 0:00:12.7]} 0-1